Workbook

Sheet Answer
A1: วิชา 01403342 :: การบ้าน | G1: กลุ่ม | M1: std_id= | N1: =RIGHT(I2,1)&RIGHT(I3,1)&RIGHT(I4,1) -> 
A2: ชื่อ-สกุล | G2: เลขประจำตัว | K2: « | L2: nLevel | M2: Bstart | N2: Blength | O2: xStart | P2: xEnd | Q2: xPosition | R2: mlevel | S2: yStart | T2: yEnd | U2: yPosition
A3: ชื่อ-สกุล | G3: เลขประจำตัว | K3: ¬ | L3: =MOD(LEN(Name1)+LEN(name2)+LEN(name3),4)+1 -> 1 | M3: =MOD(FIND(" ",Name1)+FIND(" ",name2),5)*0.25+0.25 ->  | N3: =6-Bstart-0.25-MOD(STD_ID,4)*0.25 ->  | O3: =Bstart+MOD(LEN(Name1),5/2+0.25) ->  | P3: =xStart+0.25*MOD(LEN(Name1),6)+0.5 ->  | Q3: =ROUND((xStart+xEnd)/2.2,1) ->  | R3: =MOD(STD_ID*3,4) ->  | S3: =MOD(STD_ID,5)*-0.25 ->  | T3: =MOD(LEN(Name1),7)*0.25+1.5+yStart ->  | U3: =ROUND((yStart+yEnd)/1.5,1) -> 
A4: ชื่อ-สกุล | G4: เลขประจำตัว
A5: คำแนะนำ | B5: 1) ต้อง ลงฟอนต์ TH SarabunPSK ในเครื่อง 2) กรอกชื่อและเลขประจำตัวในหน้า sheet Answer 3) กรอกข้อมูลที่เกี่ยวข้องลงใน sheet Pbox และ sheet HO โดยกรอกข้อมูลในช่องสีเหลืองและสีส้ม ให้ครบถ้วน (ดูให้ละเอียด ทั้งไฟล์) - sheet Pbox เติมข้อมูลในช่องสีส้มก่อน จากนั้นเติมในช่องสีเหลือง (ถ้ายังไม่ทราบอาจลองเติมดูก่อน) - sheet HO เลือกสภาวะที่ต้องการจากปุ่ม เติมข้อมูลในช่องสีเหลือง/ส้ม เท่านั้น 4) ห้ามแก้ไขช่องอื่นใดที่ไม่ใช่สีเหลือง/ส้ม ห้ามลบ/แทรก ก๊อปปี้ข้อมูล 5) ตอบคำถามด้านล่างโดยใช้ข้อมูลจาก sheet Pbox และ sheet HO และกรอกข้อมูลในช่องสีเหลืองให้ถูกต้อง 6) print หน้า sheet Answer, sheet Pbox, sheet HO เป็น pdf file และนำมาส่งตามที่กำหนดในเว็บไซต์ (รวม 4 แผ่น) | L5: =IF(AND(ISNUMBER(nLevel),nLevel=PBox!B6),"x","") ->  | O5: =IF(AND(ISNUMBER(xStart),xStart=PAB_xini),"x","") ->  | P5: =IF(AND(ISNUMBER(xEnd),xEnd=PAB_xfin),"x","") ->  | R5: =IF(AND(ISNUMBER(HO!B5),mlevel=HO!B5),"x","") ->  | S5: =IF(AND(ISNUMBER(yStart),yStart=HO_xini),"x","") ->  | T5: =IF(AND(ISNUMBER(yEnd),yEnd=HO_xfin),"x","") -> 
A6: ระบบ Particle in a box | J6: คำตอบ | K6: เฉลย | V6: =COUNTIF(A7:A14,$K$2)+COUNTIF(A17:A24,$K$2) -> 0
A7: =IF(nLevel=PBox!B6,$K$2,$K$3) -> ¬ | B7: ="ถ้าอนุภาคในกล่องอยู่ในสภาวะ n="&nLevel -> ถ้าอนุภาคในกล่องอยู่ในสภาวะ n=1
A8: =IF(AND(A7=$K$2,L8="A"),$K$2,$K$3) -> ¬ | C8: จากกราฟ กล่องนี้มีความกว้างเท่าใด | K8: =Blength ->  | L8: =IF(LEN(J8)>0,IF(ABS(K8)<0.0000000001,IF(J8=0,"A","x"),IF(ABS((J8-K8)/K8)<0.01*ABS(K8),"A","x")),"") -> 
A9: ¬ | C9: จงหาค่า Normalizing Factor ของฟังก์ชันคลื่น | K9: =1/SQRT(Blength/2) ->  | L9: =IF(LEN(J9)>0,IF(ABS(K9)<0.0000000001,IF(J9=0,"A","x"),IF(ABS((J9-K9)/K9)<0.01*ABS(K9),"A","x")),"") -> 
A10: ¬ | B10: =IF(ABS(J10-PBox!F6)>0.0001,"x","") ->  | C10: ความน่าจะเป็นที่อนุภาคอยู่ในกล่องเท่ากับ | K10: =1 -> 1 | L10: =IF(LEN(J10)>0,IF(ABS(K10)<0.0000000001,IF(J10=0,"A","x"),IF(ABS((J10-K10)/K10)<0.01*ABS(K10),"A","x")),"") -> 
A11: ¬ | C11: ="จงหาค่า ฟังก์ชันคลื่นที่ตำแหน่ง "&TEXT(Q3,"0.00")&" cm" ->  | K11: =TEXT(HLOOKUP(PBox!B9,PAB_tab,MATCH(xPosition,PAB_id,1),0),"0.0000") -> 
A12: ¬ | C12: ="จงหาค่า ความน่าจะเป็นที่จะพบอนุภาคที่ตำแหน่ง "&TEXT(Q3,"0.00")&" cm" ->  | K12: =TEXT(HLOOKUP(PBox!C9,PAB_tab,MATCH(xPosition,PAB_id,1),0),"0.0000") -> 
A13: ¬ | C13: ตำแหน่งที่มีโอกาสพบอนุภาคมากสุดมีความน่าจะเป็นเท่าใด | K13: =MAX(PABV_p) -> 
A14: ¬ | C14: ="จงหาค่าความน่าจะเป็นที่จะพบอนุภาคในช่วง x= "&TEXT(O3,"0.00")&" ถึง "&TEXT(P3,"0.00")&" cm" ->  | K14: =TEXT(SUMIFS(PABV_p,PABV_x,">="&xStart,PABV_x,"<="&xEnd)*stepsize,"0.0000") -> 0.0000
C15: เมื่อพิมพ์หน้า Tab Pbox ให้ขีดเส้นแสดงบริเวณที่ต้องการอินทิเกรตในกราฟ | L15: =IF(LEN(J15)>0,IF(K15=0,IF(J15=0,"A","x"),IF(ABS((J15-K15)/K15)<0.01*K15,"A","x")),"") -> 
A16: ระบบ Harmonic Oscillator | L16: =IF(LEN(J16)>0,IF(K16=0,IF(J16=0,"A","x"),IF(ABS((J16-K16)/K16)<0.01*K16,"A","x")),"") -> 
A17: =IF(AND(ISNUMBER(HO!B5),mlevel=HO!B5),$K$2,$K$3) ->  | B17: ถ้าอนุภาค Harmonic Oscillator อยู่ในสภาวะ n= | G17: =mlevel ->  | L17: =IF(LEN(J17)>0,IF(K17=0,IF(J17=0,"A","x"),IF(ABS((J17-K17)/K17)<0.01*K17,"A","x")),"") -> 
A18: =IF(AND(A17=$K$2,L18="A"),$K$2,$K$3) ->  | C18: จงหาค่า Normalizing Factor ของฟังก์ชันคลื่น | K18: =ROUND(HLOOKUP("Nfac",HOv_Ntab,G17+2,1),4) ->  | L18: =IF(LEN(J18)>0,IF(ABS(K18)<0.0000000001,IF(J18=0,"A","x"),IF(ABS((J18-K18)/K18)<0.01*ABS(K18),"A","x")),"") -> 
A19: =IF(AND(A18=$K$2,L19="A"),$K$2,$K$3) ->  | B19: =IF(ABS(J19-HO!F5)>0.0001,"x","") ->  | C19: ความน่าจะเป็นที่อนุภาคบริเวณ x = -4 ถึง 4 cm | K19: 1 | L19: =IF(LEN(J19)>0,IF(ABS(K19)<0.0000000001,IF(J19=0,"A","x"),IF(ABS((J19-K19)/K19)<0.01*ABS(K19),"A","x")),"") -> 
A20: =IF(AND(A18=$K$2,L20="A"),$K$2,$K$3) ->  | C20: ตำแหน่งที่มีโอกาสพบอนุภาคมากสุดมีความน่าจะเป็นเท่าใด | K20: =MAX(HOv_P) -> 0 | L20: =IF(LEN(J20)>0,IF(ABS(K20)<0.0000000001,IF(J20=0,"A","x"),IF(ABS((J20-K20)/K20)<0.01*ABS(K20),"A","x")),"") -> 
A21: =IF(AND(A20=$K$2,L21="A"),$K$2,$K$3) ->  | C21: ตำแหน่งที่มีโอกาสพบอนุภาคมากที่สุดคือที่ X เท่ากับเท่าใด (ให้ตอบค่าเดียว) | K21: =HLOOKUP("x",HOV_Tab,MATCH(K20,HOv_P,0)+1,0) -> -4
A22: =IF(AND(A21=$K$2,L22="A"),$K$2,$K$3) ->  | C22: ="จงหาค่า ค่าฟังก์ชันคลื่นที่ตำแหน่ง "&TEXT(U3,"0.00")&" cm" ->  | K22: =HLOOKUP("Y",HOV_Tab,MATCH(yPosition,HOv_x,1)+1,0) -> 
A23: =IF(AND(A22=$K$2,L23="A"),$K$2,$K$3) ->  | C23: ="จงหาค่า ความน่าจะเป็นที่จะพบอนุภาคที่ตำแหน่ง "&TEXT(U3,"0.00")&" cm" ->  | K23: =HLOOKUP("Prob",HOV_Tab,MATCH(yPosition,HOv_x,1)+1,0) -> 
A24: =IF(AND(A23=$K$2,L24="A"),$K$2,$K$3) ->  | C24: ="จงหาค่าความน่าจะเป็นที่จะพบอนุภาคในช่วง x= "&TEXT(yStart,"0.00")&" ถึง "&TEXT(yEnd,"0.00")&" cm" ->  | K24: =TEXT(SUMIFS(HOv_P,HOv_x,">="&yStart-0.0001,HOv_x,"<="&yEnd)*step_h,"0.0000") -> 0.0000
C25: เมื่อพิมพ์หน้า Tab HO ให้ขีดเส้นแสดงบริเวณที่ต้องการอินทิเกรตในกราฟ
A26: =IF(LEN(J8)>0,"กำหนดให้","") ->  | C26: =IF(LEN(J8)>0,"ค่าคงที่ของแก๊สเท่ากับ "&COUNTIF(L5:U5,"x")&".594","") -> 
C27: =IF(COUNT(J8:J14)=7,"ค่าคงที่ของแพลงค์เท่ากับ "&COUNTIF(A8:A14,K2)&".5354","") -> 
C28: =IF(COUNT(J18:J24)=7,"ค่าคงที่ของโบซทมานน์เท่ากับ "&COUNTIF(A18:A24,K2)&".089","") -> 

Sheet PBox
A1: Particle in 1D-Box
A2: Xstart | B2: 0
A3: Box Length | B3: =Blength ->  | C3: BoxStart | D3: =Bstart ->  | E3: BoxStop | F3: =D3+B3 -> 
A4: Integrate from | C4: to | E4: Step | F4: 0.025
A5: Flag | B5: 1 | C5: 1 | D5: 1 | F5: 0
A6: n= | C6: ="Integrated P (Overall) =" -> Integrated P (Overall) = | F6: =SUM(PABV_p)*stepsize -> 
A7: N= | B7: 1 | C7: ="Integrated P ("&TEXT(B4,"0.00")&" - "&TEXT(D4,"0.00")&") =" -> Integrated P (0.00 - 0.00) = | F7: =IF(AND(ISNUMBER(PAB_xini),ISNUMBER(PAB_xfin)),SUM(D10:D250),"") -> 
A8: shift | B8: =-1*D3 -> 
A9: X | B9: ="Y"&B6 -> Y | C9: Prob. | D9: Area | E9: Energy | F9: Range
A10: =IF(A9="x",$B$2,ROUND(A9+stepsize,4)) -> 0 | B10: =IF(AND(A10>=$D$3,A10<=$F$3),B$5*(B$7*SIN($B$6*PI()*(A10+$B$8)/$B$3)),0) ->  | C10: =C$5*((B10)^2) ->  | E10: =0 -> 0 | F10: =IF(F$5=1,IF(AND(A10>=$B$4,A10<=$D$4),C10,0),-5) -> -5
A11: 0.025 | B11: =IF(AND(A11>=$D$3,A11<=$F$3),B$5*(B$7*SIN($B$6*PI()*(A11+$B$8)/$B$3)),0) ->  | C11: =C$5*((B11)^2) ->  | E11: =0 -> 0 | F11: =IF(F$5=1,IF(AND(A11>=$B$4,A11<=$D$4),C11,0),-5) -> -5
A12: 0.05 | E12: =0 -> 0 | F12: -5
A13: 0.075 | E13: =0 -> 0 | F13: -5
A14: 0.1 | E14: =0 -> 0 | F14: -5
A15: 0.125 | E15: =0 -> 0 | F15: -5
A16: 0.15 | E16: =0 -> 0 | F16: -5
A17: 0.175 | E17: =0 -> 0 | F17: -5
A18: 0.2 | E18: =0 -> 0 | F18: -5
A19: 0.225 | E19: =0 -> 0 | F19: -5
A20: 0.25 | E20: =0 -> 0 | F20: -5
A21: 0.275 | E21: =0 -> 0 | F21: -5
A22: 0.3 | E22: =0 -> 0 | F22: -5
A23: 0.325 | E23: =0 -> 0 | F23: -5
A24: 0.35 | E24: =0 -> 0 | F24: -5
A25: 0.375 | E25: =0 -> 0 | F25: -5
A26: 0.4 | E26: =0 -> 0 | F26: -5
A27: 0.425 | E27: =0 -> 0 | F27: -5
A28: 0.45 | E28: =0 -> 0 | F28: -5
A29: 0.475 | E29: =0 -> 0 | F29: -5
A30: 0.5 | E30: =0 -> 0 | F30: -5
A31: 0.525 | E31: =0 -> 0 | F31: -5
A32: 0.55 | E32: =0 -> 0 | F32: -5
A33: 0.575 | E33: =0 -> 0 | F33: -5
A34: 0.6 | E34: =0 -> 0 | F34: -5
A35: 0.625 | E35: =0 -> 0 | F35: -5
A36: 0.65 | E36: =0 -> 0 | F36: -5
A37: 0.675 | E37: =0 -> 0 | F37: -5
A38: 0.7 | E38: =0 -> 0 | F38: -5
A39: 0.725 | E39: =0 -> 0 | F39: -5
A40: 0.75 | E40: =0 -> 0 | F40: -5
A41: 0.775 | E41: =0 -> 0 | F41: -5
A42: 0.8 | E42: =0 -> 0 | F42: -5
A43: 0.825 | E43: =0 -> 0 | F43: -5
A44: 0.85 | E44: =0 -> 0 | F44: -5
A45: 0.875 | E45: =0 -> 0 | F45: -5
A46: 0.9 | E46: =0 -> 0 | F46: -5
A47: 0.925 | E47: =0 -> 0 | F47: -5
A48: 0.95 | E48: =0 -> 0 | F48: -5
A49: 0.975 | E49: =0 -> 0 | F49: -5
A50: 1 | E50: =0 -> 0 | F50: -5
A51: 1.025 | E51: =0 -> 0 | F51: -5
A52: 1.05 | E52: =0 -> 0 | F52: -5
A53: 1.075 | E53: =0 -> 0 | F53: -5
A54: 1.1 | E54: =0 -> 0 | F54: -5
A55: 1.125 | E55: =0 -> 0 | F55: -5
A56: 1.15 | E56: =0 -> 0 | F56: -5
A57: 1.175 | E57: =0 -> 0 | F57: -5
A58: 1.2 | E58: =0 -> 0 | F58: -5
A59: 1.225 | E59: =0 -> 0 | F59: -5
A60: 1.25 | E60: =0 -> 0 | F60: -5
A61: 1.275 | E61: =0 -> 0 | F61: -5
A62: 1.3 | E62: =0 -> 0 | F62: -5
A63: 1.325 | E63: =0 -> 0 | F63: -5
A64: 1.35 | E64: =0 -> 0 | F64: -5
A65: 1.375 | E65: =0 -> 0 | F65: -5
A66: 1.4 | E66: =0 -> 0 | F66: -5
A67: 1.425 | E67: =0 -> 0 | F67: -5
A68: 1.45 | E68: =0 -> 0 | F68: -5
A69: 1.475 | E69: =0 -> 0 | F69: -5
A70: 1.5 | E70: =0 -> 0 | F70: -5
A71: 1.525 | E71: =0 -> 0 | F71: -5
A72: 1.55 | B72: =IF(AND(A72>=$D$3,A72<=$F$3),B$5*(B$7*SIN($B$6*PI()*(A72+$B$8)/$B$3)),0) ->  | C72: =C$5*((B72)^2) ->  | E72: =0 -> 0 | F72: =IF(F$5=1,IF(AND(A72>=$B$4,A72<=$D$4),C72,0),-5) -> -5
A73: 1.575 | E73: =0 -> 0 | F73: -5
A74: =IF(A73="x",$B$2,ROUND(A73+stepsize,4)) -> 1.6 | E74: =0 -> 0 | F74: -5
A75: 1.625 | E75: =0 -> 0 | F75: -5
A76: 1.65 | E76: =0 -> 0 | F76: -5
A77: 1.675 | E77: =0 -> 0 | F77: -5
A78: 1.7 | E78: =0 -> 0 | F78: -5
A79: 1.725 | E79: =0 -> 0 | F79: -5
A80: 1.75 | E80: =0 -> 0 | F80: -5
A81: 1.775 | E81: =0 -> 0 | F81: -5
A82: 1.8 | E82: =0 -> 0 | F82: -5
A83: 1.825 | E83: =0 -> 0 | F83: -5
A84: 1.85 | E84: =0 -> 0 | F84: -5
A85: 1.875 | E85: =0 -> 0 | F85: -5
A86: 1.9 | E86: =0 -> 0 | F86: -5
A87: 1.925 | E87: =0 -> 0 | F87: -5
A88: 1.95 | E88: =0 -> 0 | F88: -5
A89: 1.975 | E89: =0 -> 0 | F89: -5
A90: 2 | E90: =0 -> 0 | F90: -5
A91: 2.025 | E91: =0 -> 0 | F91: -5
A92: 2.05 | E92: =0 -> 0 | F92: -5
A93: 2.075 | E93: =0 -> 0 | F93: -5
A94: 2.1 | E94: =0 -> 0 | F94: -5
A95: 2.125 | E95: =0 -> 0 | F95: -5
A96: 2.15 | E96: =0 -> 0 | F96: -5
A97: 2.175 | E97: =0 -> 0 | F97: -5
A98: 2.2 | E98: =0 -> 0 | F98: -5
A99: 2.225 | E99: =0 -> 0 | F99: -5
A100: 2.25 | E100: =0 -> 0 | F100: -5
A101: 2.275 | E101: =0 -> 0 | F101: -5
A102: 2.3 | E102: =0 -> 0 | F102: -5
A103: 2.325 | E103: =0 -> 0 | F103: -5
A104: 2.35 | E104: =0 -> 0 | F104: -5
A105: 2.375 | E105: =0 -> 0 | F105: -5
A106: 2.4 | E106: =0 -> 0 | F106: -5
A107: 2.425 | E107: =0 -> 0 | F107: -5
A108: 2.45 | E108: =0 -> 0 | F108: -5
A109: 2.475 | E109: =0 -> 0 | F109: -5
A110: 2.5 | E110: =0 -> 0 | F110: -5
A111: 2.525 | E111: =0 -> 0 | F111: -5
A112: 2.55 | E112: =0 -> 0 | F112: -5
A113: 2.575 | E113: =0 -> 0 | F113: -5
A114: 2.6 | E114: =0 -> 0 | F114: -5
A115: 2.625 | E115: =0 -> 0 | F115: -5
A116: 2.65 | E116: =0 -> 0 | F116: -5
A117: 2.675 | E117: =0 -> 0 | F117: -5
A118: 2.7 | E118: =0 -> 0 | F118: -5
A119: 2.725 | E119: =0 -> 0 | F119: -5
A120: 2.75 | E120: =0 -> 0 | F120: -5
A121: 2.775 | E121: =0 -> 0 | F121: -5
A122: 2.8 | E122: =0 -> 0 | F122: -5
A123: 2.825 | E123: =0 -> 0 | F123: -5
A124: 2.85 | E124: =0 -> 0 | F124: -5
A125: 2.875 | E125: =0 -> 0 | F125: -5
A126: 2.9 | E126: =0 -> 0 | F126: -5
A127: 2.925 | E127: =0 -> 0 | F127: -5
A128: 2.95 | E128: =0 -> 0 | F128: -5
A129: 2.975 | E129: =0 -> 0 | F129: -5
A130: 3 | E130: =0 -> 0 | F130: -5
A131: 3.025 | E131: =0 -> 0 | F131: -5
A132: 3.05 | E132: =0 -> 0 | F132: -5
A133: 3.075 | E133: =0 -> 0 | F133: -5
A134: 3.1 | E134: =0 -> 0 | F134: -5
A135: 3.125 | E135: =0 -> 0 | F135: -5
A136: 3.15 | B136: =IF(AND(A136>=$D$3,A136<=$F$3),B$5*(B$7*SIN($B$6*PI()*(A136+$B$8)/$B$3)),0) ->  | C136: =C$5*((B136)^2) ->  | E136: =0 -> 0 | F136: =IF(F$5=1,IF(AND(A136>=$B$4,A136<=$D$4),C136,0),-5) -> -5
A137: 3.175 | E137: =0 -> 0 | F137: -5
A138: =IF(A137="x",$B$2,ROUND(A137+stepsize,4)) -> 3.2 | E138: =0 -> 0 | F138: -5
A139: 3.225 | E139: =0 -> 0 | F139: -5
A140: 3.25 | E140: =0 -> 0 | F140: -5
A141: 3.275 | E141: =0 -> 0 | F141: -5
A142: 3.3 | E142: =0 -> 0 | F142: -5
A143: 3.325 | E143: =0 -> 0 | F143: -5
A144: 3.35 | E144: =0 -> 0 | F144: -5
A145: 3.375 | E145: =0 -> 0 | F145: -5
A146: 3.4 | E146: =0 -> 0 | F146: -5
A147: 3.425 | E147: =0 -> 0 | F147: -5
A148: 3.45 | E148: =0 -> 0 | F148: -5
A149: 3.475 | E149: =0 -> 0 | F149: -5
A150: 3.5 | E150: =0 -> 0 | F150: -5
A151: 3.525 | E151: =0 -> 0 | F151: -5
A152: 3.55 | E152: =0 -> 0 | F152: -5
A153: 3.575 | E153: =0 -> 0 | F153: -5
A154: 3.6 | E154: =0 -> 0 | F154: -5
A155: 3.625 | E155: =0 -> 0 | F155: -5
A156: 3.65 | E156: =0 -> 0 | F156: -5
A157: 3.675 | E157: =0 -> 0 | F157: -5
A158: 3.7 | E158: =0 -> 0 | F158: -5
A159: 3.725 | E159: =0 -> 0 | F159: -5
A160: 3.75 | E160: =0 -> 0 | F160: -5
A161: 3.775 | E161: =0 -> 0 | F161: -5
A162: 3.8 | E162: =0 -> 0 | F162: -5
A163: 3.825 | E163: =0 -> 0 | F163: -5
A164: 3.85 | E164: =0 -> 0 | F164: -5
A165: 3.875 | E165: =0 -> 0 | F165: -5
A166: 3.9 | E166: =0 -> 0 | F166: -5
A167: 3.925 | E167: =0 -> 0 | F167: -5
A168: 3.95 | E168: =0 -> 0 | F168: -5
A169: 3.975 | E169: =0 -> 0 | F169: -5
A170: 4 | E170: =0 -> 0 | F170: -5
A171: 4.025 | E171: =0 -> 0 | F171: -5
A172: 4.05 | E172: =0 -> 0 | F172: -5
A173: 4.075 | E173: =0 -> 0 | F173: -5
A174: 4.1 | E174: =0 -> 0 | F174: -5
A175: 4.125 | E175: =0 -> 0 | F175: -5
A176: 4.15 | E176: =0 -> 0 | F176: -5
A177: 4.175 | E177: =0 -> 0 | F177: -5
A178: 4.2 | E178: =0 -> 0 | F178: -5
A179: 4.225 | E179: =0 -> 0 | F179: -5
A180: 4.25 | E180: =0 -> 0 | F180: -5
A181: 4.275 | E181: =0 -> 0 | F181: -5
A182: 4.3 | E182: =0 -> 0 | F182: -5
A183: 4.325 | E183: =0 -> 0 | F183: -5
A184: 4.35 | E184: =0 -> 0 | F184: -5
A185: 4.375 | E185: =0 -> 0 | F185: -5
A186: 4.4 | E186: =0 -> 0 | F186: -5
A187: 4.425 | E187: =0 -> 0 | F187: -5
A188: 4.45 | E188: =0 -> 0 | F188: -5
A189: 4.475 | E189: =0 -> 0 | F189: -5
A190: 4.5 | E190: =0 -> 0 | F190: -5
A191: 4.525 | E191: =0 -> 0 | F191: -5
A192: 4.55 | E192: =0 -> 0 | F192: -5
A193: 4.575 | E193: =0 -> 0 | F193: -5
A194: 4.6 | E194: =0 -> 0 | F194: -5
A195: 4.625 | E195: =0 -> 0 | F195: -5
A196: 4.65 | E196: =0 -> 0 | F196: -5
A197: 4.675 | E197: =0 -> 0 | F197: -5
A198: 4.7 | E198: =0 -> 0 | F198: -5
A199: 4.725 | E199: =0 -> 0 | F199: -5
A200: 4.75 | B200: =IF(AND(A200>=$D$3,A200<=$F$3),B$5*(B$7*SIN($B$6*PI()*(A200+$B$8)/$B$3)),0) ->  | C200: =C$5*((B200)^2) ->  | E200: =0 -> 0 | F200: =IF(F$5=1,IF(AND(A200>=$B$4,A200<=$D$4),C200,0),-5) -> -5
... 50 more rows

Sheet HO
A1: Harmonic Oscillator | F1: เลือกสภาวะที่ต้องการโดยกดปุ่ม และเติมค่าในช่องสีเหลืองเท่านั้น
A2: Xstart | B2: -4 | C2: Step | D2: 0.025
A3: Box Center | B3: 0 | C3: k = | D3: 2 | E3: a= | F3: 0.8
A4: Integrate from | C4: to | E4: Efactor= | F4: 4.5 | W4: x
A5: n= | B5: 3 | C5: Integrated Overall P = | F5: =SUM(D10:D330)*step_h -> 0 | T5: n | U5: formula | V5: N | W5: Nfac
A6: N= | C6: ="Integrated P(x="&TEXT(B4,"0.00")&" to "& TEXT(D4,"0.00")&") =" -> Integrated P(x=0.00 to 0.00) = | F6: =IF(AND(ISNUMBER(HO_xini),ISNUMBER(HO_xfin)),SUM(E10:E330),"") ->  | T6: 0 | U6: =B$6*EXP(-1*(($A10+$B$7)/$F$3)^2/2) -> 0 | V6: =IF($W$4="x",1,$W$6) -> 1 | W6: =1/SQRT($F$3*SQRT(PI())*2^$T6*FACT($T6)) -> 0.8397838885 | X6: =1/SQRT($F$3*SQRT(PI())*2^$T6*FACT($T6)) -> 0.8397838885
A7: shift | B7: =-1*B3 -> 0 | T7: 1 | U7: =$B$6*(2*($A10+$B$7)/$F$3)*EXP(-1*(($A10+$B$7)/$F$3)^2/2) -> 0 | V7: =IF($W$4="x",1,$W$7) -> 1 | W7: =1/SQRT($F$3*SQRT(PI())*2^$T7*FACT($T7)) -> 0.5938168823 | X7: 0.5938168823
A8: Flag | B8: 1 | C8: 1 | D8: 1 | T8: 2 | U8: =$B$6*(4*($A10+$B$7)^2/$F$3^2-2)*EXP(-1*(($A10+$B$7)/$F$3)^2/2) -> 0 | V8: =IF($W$4="x",1,$W$8) -> 1 | W8: 0.2969084412 | X8: 0.2969084412
A9: X | B9: V | C9: Y | D9: Prob | E9: Area | F9: E1 | T9: 3 | U9: =$B$6*(8*($A10+$B$7)^3/$F$3^3-12*($A10+$B$7)/$F$3)*EXP(-1*(($A10+$B$7)/$F$3)^2/2) -> 0 | V9: =IF($W$4="x",1,$W$9) -> 1 | W9: 0.1212123635 | X9: 0.1212123635
A10: =IF(A9="x",$B$2,A9+step_h) -> -4 | B10: =$B$8*($D$3*(A10-$B$3)^2-($B$5+0.5)*$F$4) -> 16.25 | C10: =$B$6*(8*($A10+$B$7)^3/$F$3^3-12*($A10+$B$7)/$F$3)*EXP(-1*(($A10+$B$7)/$F$3)^2/2) -> 0 | D10: =D$8*((C10)^2) -> 0 | F10: 0
A11: -3.975 | B11: =$B$8*($D$3*(A11-$B$3)^2-($B$5+0.5)*$F$4) -> 15.85125 | C11: =$B$6*(8*($A11+$B$7)^3/$F$3^3-12*($A11+$B$7)/$F$3)*EXP(-1*(($A11+$B$7)/$F$3)^2/2) -> 0 | D11: 0 | F11: 0
A12: -3.95 | B12: 15.455 | C12: 0 | D12: 0 | F12: 0
A13: -3.925 | B13: 15.06125 | C13: 0 | D13: 0 | F13: 0
A14: -3.9 | B14: 14.67 | C14: 0 | D14: 0 | F14: 0
A15: -3.875 | B15: 14.28125 | C15: 0 | D15: 0 | F15: 0
A16: -3.85 | B16: 13.895 | C16: 0 | D16: 0 | F16: 0
A17: -3.825 | B17: 13.51125 | C17: 0 | D17: 0 | F17: 0
A18: -3.8 | B18: 13.13 | C18: 0 | D18: 0 | F18: 0
A19: -3.775 | B19: 12.75125 | C19: 0 | D19: 0 | F19: 0
A20: -3.75 | B20: 12.375 | C20: 0 | D20: 0 | F20: 0
A21: -3.725 | B21: 12.00125 | C21: 0 | D21: 0 | F21: 0
A22: -3.7 | B22: 11.63 | C22: 0 | D22: 0 | F22: 0
A23: -3.675 | B23: 11.26125 | C23: 0 | D23: 0 | F23: 0
A24: -3.65 | B24: 10.895 | C24: 0 | D24: 0 | F24: 0
A25: -3.625 | B25: 10.53125 | C25: 0 | D25: 0 | F25: 0
A26: -3.6 | B26: 10.17 | C26: 0 | D26: 0 | F26: 0
A27: -3.575 | B27: 9.81125 | C27: 0 | D27: 0 | F27: 0
A28: -3.55 | B28: 9.455 | C28: 0 | D28: 0 | F28: 0
A29: -3.525 | B29: 9.10125 | C29: 0 | D29: 0 | F29: 0
A30: -3.5 | B30: 8.75 | C30: 0 | D30: 0 | F30: 0
A31: -3.475 | B31: 8.40125 | C31: 0 | D31: 0 | F31: 0
A32: -3.45 | B32: 8.055 | C32: 0 | D32: 0 | F32: 0
A33: -3.425 | B33: 7.71125 | C33: 0 | D33: 0 | F33: 0
A34: -3.4 | B34: 7.37 | C34: 0 | D34: 0 | F34: 0
A35: -3.375 | B35: 7.03125 | C35: 0 | D35: 0 | F35: 0
A36: -3.35 | B36: 6.695 | C36: 0 | D36: 0 | F36: 0
A37: -3.325 | B37: 6.36125 | C37: 0 | D37: 0 | F37: 0
A38: -3.3 | B38: 6.03 | C38: 0 | D38: 0 | F38: 0
A39: -3.275 | B39: 5.70125 | C39: 0 | D39: 0 | F39: 0
A40: -3.25 | B40: 5.375 | C40: 0 | D40: 0 | F40: 0
A41: -3.225 | B41: 5.05125 | C41: 0 | D41: 0 | F41: 0
A42: -3.2 | B42: 4.73 | C42: 0 | D42: 0 | F42: 0
A43: -3.175 | B43: 4.41125 | C43: 0 | D43: 0 | F43: 0
A44: -3.15 | B44: 4.095 | C44: 0 | D44: 0 | F44: 0
A45: -3.125 | B45: 3.78125 | C45: 0 | D45: 0 | F45: 0
A46: -3.1 | B46: 3.47 | C46: 0 | D46: 0 | F46: 0
A47: -3.075 | B47: 3.16125 | C47: 0 | D47: 0 | F47: 0
A48: -3.05 | B48: 2.855 | C48: 0 | D48: 0 | F48: 0
A49: -3.025 | B49: 2.55125 | C49: 0 | D49: 0 | F49: 0
A50: -3 | B50: 2.25 | C50: 0 | D50: 0 | F50: 0
A51: -2.975 | B51: 1.95125 | C51: 0 | D51: 0 | F51: 0
A52: -2.95 | B52: 1.655 | C52: 0 | D52: 0 | F52: 0
A53: -2.925 | B53: 1.36125 | C53: 0 | D53: 0 | F53: 0
A54: -2.9 | B54: 1.07 | C54: 0 | D54: 0 | F54: 0
A55: -2.875 | B55: 0.78125 | C55: 0 | D55: 0 | F55: 0
A56: -2.85 | B56: 0.495 | C56: 0 | D56: 0 | F56: 0
A57: -2.825 | B57: 0.21125 | C57: 0 | D57: 0 | F57: 0
A58: -2.8 | B58: -0.07 | C58: 0 | D58: 0 | F58: 0
A59: -2.775 | B59: -0.34875 | C59: 0 | D59: 0 | F59: 0
A60: -2.75 | B60: -0.625 | C60: 0 | D60: 0 | F60: 0
A61: -2.725 | B61: -0.89875 | C61: 0 | D61: 0 | F61: 0
A62: -2.7 | B62: -1.17 | C62: 0 | D62: 0 | F62: 0
A63: -2.675 | B63: -1.43875 | C63: 0 | D63: 0 | F63: 0
A64: -2.65 | B64: -1.705 | C64: 0 | D64: 0 | F64: 0
A65: -2.625 | B65: -1.96875 | C65: 0 | D65: 0 | F65: 0
A66: -2.6 | B66: -2.23 | C66: 0 | D66: 0 | F66: 0
A67: -2.575 | B67: -2.48875 | C67: 0 | D67: 0 | F67: 0
A68: -2.55 | B68: -2.745 | C68: 0 | D68: 0 | F68: 0
A69: -2.525 | B69: -2.99875 | C69: 0 | D69: 0 | F69: 0
A70: -2.5 | B70: -3.25 | C70: 0 | D70: 0 | F70: 0
A71: -2.475 | B71: -3.49875 | C71: 0 | D71: 0 | F71: 0
A72: -2.45 | B72: -3.745 | C72: 0 | D72: 0 | F72: 0
A73: -2.425 | B73: -3.98875 | C73: 0 | D73: 0 | F73: 0
A74: =IF(A73="x",$B$2,A73+step_h) -> -2.4 | B74: =$B$8*($D$3*(A74-$B$3)^2-($B$5+0.5)*$F$4) -> -4.23 | C74: 0 | D74: =D$8*((C74)^2) -> 0 | F74: 0
A75: -2.375 | B75: -4.46875 | C75: =$B$6*(8*($A75+$B$7)^3/$F$3^3-12*($A75+$B$7)/$F$3)*EXP(-1*(($A75+$B$7)/$F$3)^2/2) -> 0 | D75: 0 | F75: 0
A76: -2.35 | B76: -4.705 | C76: 0 | D76: 0 | F76: 0
A77: -2.325 | B77: -4.93875 | C77: 0 | D77: 0 | F77: 0
A78: -2.3 | B78: -5.17 | C78: 0 | D78: 0 | F78: 0
A79: -2.275 | B79: -5.39875 | C79: 0 | D79: 0 | F79: 0
A80: -2.25 | B80: -5.625 | C80: 0 | D80: 0 | F80: 0
A81: -2.225 | B81: -5.84875 | C81: 0 | D81: 0 | F81: 0
A82: -2.2 | B82: -6.07 | C82: 0 | D82: 0 | F82: 0
A83: -2.175 | B83: -6.28875 | C83: 0 | D83: 0 | F83: 0
A84: -2.15 | B84: -6.505 | C84: 0 | D84: 0 | F84: 0
A85: -2.125 | B85: -6.71875 | C85: 0 | D85: 0 | F85: 0
A86: -2.1 | B86: -6.93 | C86: 0 | D86: 0 | F86: 0
A87: -2.075 | B87: -7.13875 | C87: 0 | D87: 0 | F87: 0
A88: -2.05 | B88: -7.345 | C88: 0 | D88: 0 | F88: 0
A89: -2.025 | B89: -7.54875 | C89: 0 | D89: 0 | F89: 0
A90: -2 | B90: -7.75 | C90: 0 | D90: 0 | F90: 0
A91: -1.975 | B91: -7.94875 | C91: 0 | D91: 0 | F91: 0
A92: -1.95 | B92: -8.145 | C92: 0 | D92: 0 | F92: 0
A93: -1.925 | B93: -8.33875 | C93: 0 | D93: 0 | F93: 0
A94: -1.9 | B94: -8.53 | C94: 0 | D94: 0 | F94: 0
A95: -1.875 | B95: -8.71875 | C95: 0 | D95: 0 | F95: 0
A96: -1.85 | B96: -8.905 | C96: 0 | D96: 0 | F96: 0
A97: -1.825 | B97: -9.08875 | C97: 0 | D97: 0 | F97: 0
A98: -1.8 | B98: -9.27 | C98: 0 | D98: 0 | F98: 0
A99: -1.775 | B99: -9.44875 | C99: 0 | D99: 0 | F99: 0
A100: -1.75 | B100: -9.625 | C100: 0 | D100: 0 | F100: 0
A101: -1.725 | B101: -9.79875 | C101: 0 | D101: 0 | F101: 0
A102: -1.7 | B102: -9.97 | C102: 0 | D102: 0 | F102: 0
A103: -1.675 | B103: -10.13875 | C103: 0 | D103: 0 | F103: 0
A104: -1.65 | B104: -10.305 | C104: 0 | D104: 0 | F104: 0
A105: -1.625 | B105: -10.46875 | C105: 0 | D105: 0 | F105: 0
A106: -1.6 | B106: -10.63 | C106: 0 | D106: 0 | F106: 0
A107: -1.575 | B107: -10.78875 | C107: 0 | D107: 0 | F107: 0
A108: -1.55 | B108: -10.945 | C108: 0 | D108: 0 | F108: 0
A109: -1.525 | B109: -11.09875 | C109: 0 | D109: 0 | F109: 0
A110: -1.5 | B110: -11.25 | C110: 0 | D110: 0 | F110: 0
A111: -1.475 | B111: -11.39875 | C111: 0 | D111: 0 | F111: 0
A112: -1.45 | B112: -11.545 | C112: 0 | D112: 0 | F112: 0
A113: -1.425 | B113: -11.68875 | C113: 0 | D113: 0 | F113: 0
A114: -1.4 | B114: -11.83 | C114: 0 | D114: 0 | F114: 0
A115: -1.375 | B115: -11.96875 | C115: 0 | D115: 0 | F115: 0
A116: -1.35 | B116: -12.105 | C116: 0 | D116: 0 | F116: 0
A117: -1.325 | B117: -12.23875 | C117: 0 | D117: 0 | F117: 0
A118: -1.3 | B118: -12.37 | C118: 0 | D118: 0 | F118: 0
A119: -1.275 | B119: -12.49875 | C119: 0 | D119: 0 | F119: 0
A120: -1.25 | B120: -12.625 | C120: 0 | D120: 0 | F120: 0
A121: -1.225 | B121: -12.74875 | C121: 0 | D121: 0 | F121: 0
A122: -1.2 | B122: -12.87 | C122: 0 | D122: 0 | F122: 0
A123: -1.175 | B123: -12.98875 | C123: 0 | D123: 0 | F123: 0
A124: -1.15 | B124: -13.105 | C124: 0 | D124: 0 | F124: 0
A125: -1.125 | B125: -13.21875 | C125: 0 | D125: 0 | F125: 0
A126: -1.1 | B126: -13.33 | C126: 0 | D126: 0 | F126: 0
A127: -1.075 | B127: -13.43875 | C127: 0 | D127: 0 | F127: 0
A128: -1.05 | B128: -13.545 | C128: 0 | D128: 0 | F128: 0
A129: -1.025 | B129: -13.64875 | C129: 0 | D129: 0 | F129: 0
A130: -1 | B130: -13.75 | C130: 0 | D130: 0 | F130: 0
A131: -0.975 | B131: -13.84875 | C131: 0 | D131: 0 | F131: 0
A132: -0.95 | B132: -13.945 | C132: 0 | D132: 0 | F132: 0
A133: -0.925 | B133: -14.03875 | C133: 0 | D133: 0 | F133: 0
A134: -0.9 | B134: -14.13 | C134: 0 | D134: 0 | F134: 0
A135: -0.875 | B135: -14.21875 | C135: 0 | D135: 0 | F135: 0
A136: -0.85 | B136: -14.305 | C136: 0 | D136: 0 | F136: 0
A137: -0.825 | B137: -14.38875 | C137: 0 | D137: 0 | F137: 0
A138: =IF(A137="x",$B$2,A137+step_h) -> -0.8 | B138: =$B$8*($D$3*(A138-$B$3)^2-($B$5+0.5)*$F$4) -> -14.47 | C138: 0 | D138: =D$8*((C138)^2) -> 0 | F138: 0
A139: -0.775 | B139: -14.54875 | C139: =$B$6*(8*($A139+$B$7)^3/$F$3^3-12*($A139+$B$7)/$F$3)*EXP(-1*(($A139+$B$7)/$F$3)^2/2) -> 0 | D139: 0 | F139: 0
A140: -0.75 | B140: -14.625 | C140: 0 | D140: 0 | F140: 0
A141: -0.725 | B141: -14.69875 | C141: 0 | D141: 0 | F141: 0
A142: -0.7 | B142: -14.77 | C142: 0 | D142: 0 | F142: 0
A143: -0.675 | B143: -14.83875 | C143: 0 | D143: 0 | F143: 0
A144: -0.65 | B144: -14.905 | C144: 0 | D144: 0 | F144: 0
A145: -0.625 | B145: -14.96875 | C145: 0 | D145: 0 | F145: 0
A146: -0.6 | B146: -15.03 | C146: 0 | D146: 0 | F146: 0
A147: -0.575 | B147: -15.08875 | C147: 0 | D147: 0 | F147: 0
A148: -0.55 | B148: -15.145 | C148: 0 | D148: 0 | F148: 0
A149: -0.525 | B149: -15.19875 | C149: 0 | D149: 0 | F149: 0
A150: -0.5 | B150: -15.25 | C150: 0 | D150: 0 | F150: 0
A151: -0.475 | B151: -15.29875 | C151: 0 | D151: 0 | F151: 0
A152: -0.45 | B152: -15.345 | C152: 0 | D152: 0 | F152: 0
A153: -0.425 | B153: -15.38875 | C153: 0 | D153: 0 | F153: 0
A154: -0.4 | B154: -15.43 | C154: 0 | D154: 0 | F154: 0
A155: -0.375 | B155: -15.46875 | C155: 0 | D155: 0 | F155: 0
A156: -0.35 | B156: -15.505 | C156: 0 | D156: 0 | F156: 0
A157: -0.325 | B157: -15.53875 | C157: 0 | D157: 0 | F157: 0
A158: -0.3 | B158: -15.57 | C158: 0 | D158: 0 | F158: 0
A159: -0.275 | B159: -15.59875 | C159: 0 | D159: 0 | F159: 0
A160: -0.25 | B160: -15.625 | C160: 0 | D160: 0 | F160: 0
A161: -0.225 | B161: -15.64875 | C161: 0 | D161: 0 | F161: 0
A162: -0.2 | B162: -15.67 | C162: 0 | D162: 0 | F162: 0
A163: -0.175 | B163: -15.68875 | C163: 0 | D163: 0 | F163: 0
A164: -0.15 | B164: -15.705 | C164: 0 | D164: 0 | F164: 0
A165: -0.125 | B165: -15.71875 | C165: 0 | D165: 0 | F165: 0
A166: -0.1 | B166: -15.73 | C166: 0 | D166: 0 | F166: 0
A167: -0.075 | B167: -15.73875 | C167: 0 | D167: 0 | F167: 0
A168: -0.05 | B168: -15.745 | C168: 0 | D168: 0 | F168: 0
A169: -0.025 | B169: -15.74875 | C169: 0 | D169: 0 | F169: 0
A170: -1.002670169e-14 | B170: -15.75 | C170: 0 | D170: 0 | F170: 0
A171: 0.025 | B171: -15.74875 | C171: 0 | D171: 0 | F171: 0
A172: 0.05 | B172: -15.745 | C172: 0 | D172: 0 | F172: 0
A173: 0.075 | B173: -15.73875 | C173: 0 | D173: 0 | F173: 0
A174: 0.1 | B174: -15.73 | C174: 0 | D174: 0 | F174: 0
A175: 0.125 | B175: -15.71875 | C175: 0 | D175: 0 | F175: 0
A176: 0.15 | B176: -15.705 | C176: 0 | D176: 0 | F176: 0
A177: 0.175 | B177: -15.68875 | C177: 0 | D177: 0 | F177: 0
A178: 0.2 | B178: -15.67 | C178: 0 | D178: 0 | F178: 0
A179: 0.225 | B179: -15.64875 | C179: 0 | D179: 0 | F179: 0
A180: 0.25 | B180: -15.625 | C180: 0 | D180: 0 | F180: 0
A181: 0.275 | B181: -15.59875 | C181: 0 | D181: 0 | F181: 0
A182: 0.3 | B182: -15.57 | C182: 0 | D182: 0 | F182: 0
A183: 0.325 | B183: -15.53875 | C183: 0 | D183: 0 | F183: 0
A184: 0.35 | B184: -15.505 | C184: 0 | D184: 0 | F184: 0
A185: 0.375 | B185: -15.46875 | C185: 0 | D185: 0 | F185: 0
A186: 0.4 | B186: -15.43 | C186: 0 | D186: 0 | F186: 0
A187: 0.425 | B187: -15.38875 | C187: 0 | D187: 0 | F187: 0
A188: 0.45 | B188: -15.345 | C188: 0 | D188: 0 | F188: 0
A189: 0.475 | B189: -15.29875 | C189: 0 | D189: 0 | F189: 0
A190: 0.5 | B190: -15.25 | C190: 0 | D190: 0 | F190: 0
A191: 0.525 | B191: -15.19875 | C191: 0 | D191: 0 | F191: 0
A192: 0.55 | B192: -15.145 | C192: 0 | D192: 0 | F192: 0
A193: 0.575 | B193: -15.08875 | C193: 0 | D193: 0 | F193: 0
A194: 0.6 | B194: -15.03 | C194: 0 | D194: 0 | F194: 0
A195: 0.625 | B195: -14.96875 | C195: 0 | D195: 0 | F195: 0
A196: 0.65 | B196: -14.905 | C196: 0 | D196: 0 | F196: 0
A197: 0.675 | B197: -14.83875 | C197: 0 | D197: 0 | F197: 0
A198: 0.7 | B198: =$B$8*($D$3*(A198-$B$3)^2-($B$5+0.5)*$F$4) -> -14.77 | C198: 0 | D198: =D$8*((C198)^2) -> 0 | F198: 0
A199: 0.725 | B199: -14.69875 | C199: 0 | D199: 0 | F199: 0
A200: 0.75 | B200: -14.625 | C200: 0 | D200: 0 | F200: 0
... 130 more rows

Sheet Sheet1
